fUST/lending_fUST_20250225
["ID","MTS","AMOUNT","RATE_DAILY","PERIOD"]
[354365130,1740448242145,-575.0,0.02465753,120]
[354365131,1740448242154,-575.0,0.02465753,120]
[354365132,1740448242164,-575.0,0.02465753,120]
[354365133,1740448242173,-575.0,0.02465753,120]
[354365134,1740448242182,-575.0,0.02465753,120]
[354365135,1740448242191,-575.0,0.02465753,120]
[354365136,1740448242200,-575.0,0.02465753,120]
[354365137,1740448242209,-575.0,0.02465753,120]
[354365138,1740448242219,-575.0,0.02465753,120]
[354365139,1740448242228,-575.0,0.02465753,120]
[354365140,1740448242242,-575.0,0.02465753,120]
[354365141,1740448242251,-575.0,0.02465753,120]
[354365142,1740448242261,-698.64641331,0.02465898,120]
[354365143,1740448242271,-151.63,0.02467753,30]
[354365144,1740448242281,-2000.0,0.02488,120]
[354365145,1740448242290,-4312.62223773,0.0249,120]
[354365146,1740448242299,-150.0,0.025,120]
[354365147,1740448242309,-150.0,0.027,120]
[354365148,1740448242319,-2887.05,0.027,60]
[354365149,1740448242329,-500.0,0.02739726,2]
[354365150,1740448242338,-500.0,0.02739726,2]
[354365151,1740448242348,-500.0,0.02739726,2]
[354365152,1740448242357,-500.0,0.02739726,2]
[354365153,1740448242366,-500.0,0.02739726,2]
[354365154,1740448242376,-500.0,0.02739726,2]
[354365155,1740448242385,-500.0,0.02739726,2]
[354365156,1740448242394,-500.0,0.02739726,2]
[354365157,1740448242403,-500.0,0.02739726,2]
[354365158,1740448242413,-500.0,0.02739726,2]
[354365159,1740448242423,-500.0,0.02739726,2]
[354365160,1740448242433,-500.0,0.02739726,2]
[354365161,1740448242442,-500.0,0.02739726,2]
[354365162,1740448242451,-500.0,0.02739726,2]
[354365163,1740448242463,-500.0,0.02739726,2]
[354365164,1740448242476,-259.39887996,0.02739726,2]
[354365165,1740448242490,-150.0,0.029,120]
[354365166,1740448242504,-2000.0,0.02988,120]
[354365167,1740448242517,-500.0,0.03,120]
[354365168,1740448242530,-150.0,0.0301,120]
[354365169,1740448242543,-910.922339,0.0304,120]
[354365170,1740448242554,-450.0,0.0305,120]
[354365171,1740448242564,-9634.8762071,0.0306,120]
[354365172,1740448242578,-150.0,0.033,120]
[354365173,1740448242590,-160.0,0.03711466,3]
[354365174,1740448242602,-172.19293633,0.03711466,5]
[354365175,1740448242613,-5000.0,0.03788,120]
[354365176,1740448242626,-10000.0,0.03799,120]
[354365177,1740448242638,-25000.0,0.03828,120]
[354365179,1740448242650,-151.20571936,0.0383232,120]
[354365181,1740448242662,-10000.0,0.03838,120]
[354365182,1740448242675,-1923.79962944,0.0383999,120]
[354365183,1740448242689,-247.04152615,0.0383999,120]
[354365184,1740448242701,-180.61719872,0.03839999,120]
[354365185,1740448242715,-1001.47856963,0.03839999,120]
[354365186,1740448242729,-58353.08786115,0.0384,120]
[354365187,1740448242741,-2887.05,0.0384,60]
[354365190,1740448242753,-2000.0,0.0389,120]
[354365192,1740448242764,-100000.0,0.03989,120]
[354365193,1740448242776,-2000.0,0.0399,120]
[354365194,1740448242787,-155.0,0.04,120]
[354365196,1740448242799,-242.0,0.04,120]
[354365197,1740448242810,-500.0,0.04,120]
[354365198,1740448242821,-2000.0,0.0409,120]
[354365199,1740448242835,-2000.0,0.0419,120]
[354365200,1740448242847,-2000.0,0.0429,120]
[354365201,1740448242859,-2000.0,0.0439,120]
[354365202,1740448242870,-155.0,0.04444,120]
[354365203,1740448242882,-2000.0,0.0449,120]
[354365204,1740448242893,-2000.0,0.0459,120]
[354365205,1740448242903,-2000.0,0.0469,120]
[354365207,1740448242915,-250.0,0.04747474,120]
[354365209,1740448242926,-2000.0,0.0479,120]
[354365211,1740448242937,-10000.0,0.0488,120]
[354365212,1740448242948,-2000.0,0.0489,120]
[354365213,1740448242959,-150000.0,0.04898,120]
[354365214,1740448242970,-2000.0,0.049,120]
[354365215,1740448242983,-10000.0,0.0498,120]
[354365216,1740448242995,-2000.0,0.0499,120]
[354365217,1740448243006,-1923.79962944,0.0499989,120]
[354365218,1740448243019,-247.04152615,0.0499989,120]
[354365219,1740448243030,-37216.4826387,0.049999,30]
[354365220,1740448243041,-3055.21195468,0.049999,30]
[354365221,1740448243054,-1000.0,0.05,120]
[354365222,1740448243066,-155.0,0.05,120]
[354365223,1740448243078,-500.0,0.05,120]
[354365224,1740448243090,-2000.0,0.0509,120]
[354365225,1740448243102,-2000.0,0.0529,120]
[354365226,1740448243115,-2000.0,0.0539,120]
[354365227,1740448243127,-200000.0,0.05489,120]
[354365228,1740448243137,-2000.0,0.0549,120]
[354365229,1740448243147,-155.0,0.05555,120]
[354365230,1740448243157,-10000.0,0.05588,120]
[354365231,1740448243168,-1923.79962944,0.0559998,120]
[354365232,1740448243179,-247.04152615,0.0559998,120]
[354365233,1740448243190,-39999.99999901,0.0559999,120]
[354365234,1740448243202,-9961.799999,0.0573876,120]
[354365235,1740448243213,-199.87404124,0.0574747,120]
[354365236,1740448243227,-155.0,0.05777,120]
[354365237,1740448243241,-10000.0,0.05788,120]
[354365238,1740448243254,-10000.0,0.05799,120]
[354365239,1740448243264,-1923.79962944,0.0579999,120]
[354365240,1740448243275,-247.04152615,0.0579999,120]
[354365241,1740448243285,-31299.999999,0.058,120]
[354365242,1740448243295,-300000.0,0.05898,120]
[354365243,1740448243306,-155.0,0.06,120]
[354365244,1740448243318,-500.0,0.06,120]
[354365246,1740448243330,-173.65545824,0.063,14]
[354365248,1740448243342,-155.0,0.06333,120]
[354365250,1740448243353,-21507.55080617,0.06488,120]
[354365252,1740448243364,-3909.66072847,0.0649,120]
[354365254,1740448243374,-400000.0,0.06498,120]
[354365255,1740448243384,-1420.26,0.065835,30]
[354365257,1740448243395,-930079.55587282,0.066497,120]
[354365288,1740448619256,234.970451,9.041e-05,2]
[354365290,1740448953402,1029.8,0.00040553,120]
[354365321,1740449197522,-600.01,0.00017024,2]
[354365322,1740449210038,-3099.99,0.00017024,2]
[354365323,1740449210060,-3700.0,0.0001704,2]
[354365324,1740449210082,-300.0,0.00017096,2]
[354365325,1740449210104,-1900.01,0.00017097,2]
[354365326,1740449226144,-753.984,0.00017097,2]
[354365327,1740449240075,-893.76917081,0.00017087,2]
[354365328,1740449243120,-2506.23082919,0.00017087,2]
[354365329,1740449243143,-3400.0,0.00017397,2]
[354365330,1740449243165,-1383.89812052,0.00017404,2]
[354365337,1740449310080,-500.0,0.00017404,2]
[354365338,1740449404322,-1516.10187948,0.00017404,2]
[354365339,1740449404355,-3400.0,0.00017436,2]
[354365340,1740449404386,-3400.0,0.00017439,2]
[354365341,1740449404416,-3400.0,0.0001748,2]
[354365342,1740449404450,-3400.0,0.00017653,2]
[354365343,1740449404488,-3400.0,0.00017704,2]
[354365344,1740449404525,-3400.0,0.00017717,2]
[354365345,1740449404560,-3400.0,0.00017729,2]
[354365346,1740449404596,-3400.0,0.00017803,2]
[354365347,1740449404630,-3400.0,0.00017805,2]
[354365348,1740449404672,-3400.0,0.00017818,2]
[354365349,1740449404723,-3400.0,0.00017875,2]
[354365350,1740449404766,-3400.0,0.00017951,2]
[354365351,1740449404813,-3400.0,0.0001797,2]
[354365352,1740449404852,-3400.0,0.00018022,2]
[354365353,1740449404883,-3400.0,0.00018027,2]
[354365354,1740449404913,-3400.0,0.00018063,2]
[354365355,1740449404944,-3400.0,0.00018077,2]
[354365356,1740449404974,-3400.0,0.00018183,2]
[354365357,1740449405006,-3400.0,0.00018203,2]
[354365358,1740449405036,-3400.0,0.00018237,2]
[354365359,1740449405068,-3400.0,0.00018472,2]
[354365360,1740449405097,-3400.0,0.00018575,2]
[354365361,1740449405126,-3400.0,0.00018755,2]
[354365362,1740449405155,-3400.0,0.00018807,2]
[354365363,1740449405184,-3400.0,0.000189,2]
[354365364,1740449405212,-4748.006,0.00018937,2]
[354365365,1740449405240,-160.0,0.0002,2]
[354365366,1740449405270,-160.0,0.0002,3]
[354365367,1740449405300,-160.0,0.0002,3]
[354365368,1740449405328,-160.0,0.0003,10]
[354365369,1740449405358,-243.22973391,0.000325,120]
[354365370,1740449405388,-500.0,0.00033506,23]
[354365371,1740449405424,-500.0,0.00033606,23]
[354365372,1740449405453,-513.51,0.00033706,21]
[354365373,1740449405484,-10000.0,0.0003624,60]
[354365374,1740449405520,-10000.0,0.000395,50]
[354365375,1740449405552,-10000.0,0.0004,50]
[354365376,1740449405584,-1539.03970355,0.00040506,4]
[354365377,1740449405619,-266.95216119,0.00040506,4]
[354365378,1740449405649,-10000.0,0.00040516,60]
[354365379,1740449405680,-10000.0,0.00040516,60]
[354365380,1740449405709,-10000.0,0.00040516,60]
[354365381,1740449405740,-10000.0,0.00045,80]
[354365382,1740449405774,-508.14705293,0.00048227,10]
[354365383,1740449405805,-10000.0,0.0005,90]
[354365384,1740449405835,-1306.200283,0.00052,120]
[354365385,1740449405874,-339.41874499,0.00052196,2]
[354365386,1740449405905,-507.33243382,0.00054794,120]
[354365387,1740449405937,-507.24882688,0.00054794,120]
[354365388,1740449405969,-500.0,0.00054794,120]
[354365389,1740449406002,-500.0,0.00054794,120]
[354365390,1740449406034,-500.0,0.00054794,120]
[354365391,1740449406171,-500.0,0.00054794,120]
[354365392,1740449406203,-160.0,0.00054794,7]
[354365393,1740449406235,-500.0,0.00055068,120]
[354365394,1740449406269,-500.0,0.00055068,120]
[354365395,1740449406301,-500.0,0.00055341,120]
[354365396,1740449406333,-513.18,0.00055341,120]
[354365397,1740449406365,-515.54654845,0.00055341,120]
[354365398,1740449406397,-645.38,0.00055341,120]
[354365399,1740449406430,-500.0,0.00055341,3]
[354365400,1740449406463,-500.0,0.00055341,120]
[354365401,1740449406497,-500.0,0.00055341,120]
[354365402,1740449406531,-500.0,0.00055341,120]
[354365403,1740449406566,-500.0,0.00055341,120]
[354365404,1740449406599,-500.0,0.00055341,120]
[354365405,1740449406630,-500.0,0.00055341,120]
[354365406,1740449406663,-500.0,0.00055341,120]
[354365407,1740449406697,-500.0,0.00055341,120]
[354365408,1740449406730,-153.58733875,0.00055341,120]
[354365409,1740449406761,-500.0,0.00055342,120]
[354365410,1740449406792,-500.0,0.00055342,120]
[354365411,1740449406824,-160.0,0.00055342,7]
[354365412,1740449406855,-500.0,0.00055616,120]
[354365413,1740449406887,-500.0,0.00055616,120]
[354365414,1740449406924,-1539.03970355,0.00055879,5]
[354365415,1740449406972,-266.95216119,0.00055879,5]
[354365416,1740449407037,-500.0,0.00055889,120]
[354365417,1740449407071,-500.0,0.00055889,120]
[354365418,1740449407106,-500.0,0.00055889,120]
[354365419,1740449407149,-500.0,0.00055889,10]
[354365420,1740449407205,-500.0,0.00055889,120]
[354365421,1740449407268,-500.0,0.00055889,120]
[354365422,1740449407323,-500.0,0.00055889,120]
[354365423,1740449407363,-500.0,0.00055889,120]
[354365424,1740449407406,-500.0,0.00055889,120]
[354365425,1740449407439,-500.0,0.00055889,7]
[354365426,1740449407474,-500.0,0.0005589,120]
[354365427,1740449407507,-500.0,0.0005589,120]
[354365428,1740449407539,-513.94246664,0.00056163,120]
[354365429,1740449407603,-500.0,0.00056163,120]
[354365430,1740449407648,-500.0,0.00056164,120]
[354365431,1740449407685,-498.79254981,0.00056164,120]
[354365432,1740449407750,-500.0,0.00056437,120]
[354365433,1740449407810,-500.0,0.00056437,7]
[354365434,1740449407867,-500.0,0.00056438,120]
[354365435,1740449407911,-500.0,0.00056711,120]
[354365436,1740449407959,-500.0,0.00056712,120]
[354365437,1740449408003,-500.0,0.00056985,120]
[354365438,1740449408037,-500.0,0.00056985,7]
[354365439,1740449408070,-500.0,0.00056986,120]
[354365440,1740449408101,-500.41460475,0.00057259,120]
[354365441,1740449408134,-500.0,0.0005726,120]
[354365442,1740449408167,-500.0,0.00057533,7]
[354365443,1740449408201,-500.0,0.00057534,120]
[354365444,1740449408244,-500.0,0.00057808,120]
[354365445,1740449408279,-500.0,0.00058081,7]
[354365446,1740449408312,-358.75706075,0.00058081,120]
[354365447,1740449408346,-500.0,0.00058081,3]
[354365448,1740449408379,-500.0,0.00058081,120]
[354365449,1740449408413,-170.83,0.00058081,120]
[354365450,1740449408447,-500.0,0.00058081,120]
[354365451,1740449408480,-500.0,0.00058082,120]
[354365452,1740449408513,-500.0,0.00058356,120]
[354365453,1740449408545,-500.0,0.00058629,7]
[354365454,1740449408578,-500.0,0.0005863,120]
[354365455,1740449408609,-500.0,0.00058904,120]
[354365456,1740449408644,-500.0,0.00059178,120]
[354365457,1740449408679,-500.0,0.00059452,120]
[354365458,1740449408720,-500.0,0.00059715,120]
[354365459,1740449408754,-318.1642579,0.00059726,120]
[354365460,1740449408785,-288.7,0.0006,30]
[354365461,1740449408819,-245.24,0.00060821,3]
[354365462,1740449408854,-415.8,0.00060821,120]
[354365463,1740449408886,-500.0,0.00060821,120]
[354365464,1740449408919,-288.7,0.000611,30]
[354365465,1740449408952,-1539.03970355,0.0006201,5]
[354365466,1740449408985,-266.95216119,0.0006201,5]
[354365467,1740449409019,-500.0,0.0006356,120]
[354365468,1740449409051,-500.0,0.000663,120]
[354365469,1740449409082,-749.11,0.00068493,10]
[354365470,1740449409113,-788.33,0.00068493,10]
[354365471,1740449409146,-500.0,0.0006904,120]
[354365472,1740449409179,-500.0,0.0007178,120]
[354365473,1740449409214,-500.0,0.00074519,120]
[354365474,1740449409247,-500.0,0.00077259,120]
[354365475,1740449409282,-500.0,0.00079999,120]
[354365476,1740449409314,-500.0,0.00082738,120]
[354365477,1740449409348,-461.6975057,0.00085478,120]
[354365478,1740449409379,-2000.0,0.0009,120]
[354365479,1740449409411,-13746.02131776,0.0009,120]
[354365480,1740449409443,-2000.0,0.00095,120]
[354365481,1740449409475,-603.782328,0.001,30]
[354365482,1740449409508,-500.0,0.001,120]
[354365483,1740449427768,500.0,0.00055341,120]
[354365542,1740449432703,-500.0,0.00133164,120]
[354365543,1740449432714,-500.0,0.00133712,120]
[354365544,1740449432723,-288.7,0.00134,60]
[354365545,1740449432733,-2000.0,0.00145,120]
[354365546,1740449432743,-1601.07212139,0.00195,120]
[354365547,1740449436648,10000.0,0.00035,40]
[354365555,1740449438311,-398.92787861,0.00195,120]
[354365556,1740449438321,-634.6574551,0.002,120]
[354365557,1740449438334,-3732.06311451,0.002,120]
[354365558,1740449438343,-2000.0,0.00215,120]
[354365559,1740449438352,-2000.0,0.00245,120]
[354365560,1740449438362,-1024.23314,0.00273973,120]
[354365561,1740449438371,-758.08908019,0.00273973,120]
[354365562,1740449438383,-266.14405981,0.00273973,120]
[354365563,1740449438392,-1024.23314,0.00273973,120]
[354365564,1740449438402,-1024.23314,0.00273973,120]
[354365565,1740449438411,-283.57535042,0.00273973,120]
[354365566,1740449438423,-740.65778958,0.00273973,120]
[354365567,1740449438433,-273.02130581,0.00273973,120]
[354365568,1740449438449,-751.21183419,0.00273973,120]
[354365569,1740449438459,-1024.23314,0.00273973,120]
[354365570,1740449438468,-1024.23314,0.00273973,120]
[354365571,1740449438478,-1024.23314,0.00273973,120]
[354365572,1740449438487,-1024.23314,0.00273973,120]
[354365573,1740449438497,-1024.23314,0.00273973,120]
[354365574,1740449438506,-1024.23314,0.00273973,120]
[354365575,1740449438516,-1024.23314,0.00273973,120]
[354365576,1740449438525,-1024.23314,0.00273973,120]
[354365577,1740449438534,-1024.23314,0.00273973,120]
[354365578,1740449438543,-1024.23314,0.00273973,120]
[354365579,1740449438552,-1024.23314,0.00273973,120]
[354365580,1740449438561,-1024.23314,0.00273973,120]
[354365581,1740449438571,-1024.23314,0.00273973,120]
[354365582,1740449438580,-1024.233141,0.00273973,120]
[354365583,1740449438589,-108.9276288,0.00273973,120]
[354365584,1740449438601,-364.52002253,0.00273973,120]
[354365596,1740449440555,-1625.22450775,0.00273973,120]
[354365597,1740449440565,-2098.67215908,0.00273973,120]
[354365598,1740449440574,-2098.67215908,0.00273973,120]
[354365599,1740449440583,-2098.67215908,0.00273973,120]
[354365600,1740449440592,-2098.67215908,0.00273973,120]
[354365601,1740449440602,-2098.67215908,0.00273973,120]
[354365602,1740449440611,-2098.67215908,0.00273973,120]
[354365603,1740449440622,-2098.67215908,0.0028,120]
[354365604,1740449440632,-2098.67215908,0.0029,120]
[354365605,1740449440641,-3672.1536678,0.003,120]
[354365606,1740449440651,-2098.67215908,0.003,120]
[354365607,1740449440660,-2098.67215908,0.0031,120]
[354365608,1740449440670,-2098.67215908,0.0032,120]
[354365609,1740449440680,-2098.67215908,0.0033,120]
[354365610,1740449440690,-2098.67215908,0.0034,120]
[354365611,1740449440701,-2098.67215908,0.0035,120]
[354365612,1740449440711,-2098.67215908,0.0036,120]
[354365613,1740449440721,-500.0,0.0036475,120]
[354365614,1740449440730,-1000.0,0.00365298,120]
[354365615,1740449440739,-1500.0,0.003663,120]
[354365616,1740449440749,-1697.04641331,0.00367597,120]
[354365617,1740449440759,-2098.67215908,0.0037,120]
[354365618,1740449440768,-2098.67215908,0.0038,120]
[354365619,1740449440779,-2098.67215908,0.0039,120]
[354365620,1740449440788,-150.11,0.00396045,120]
[354365621,1740449440798,-288.7,0.00397,60]
[354365622,1740449440808,-2098.67,0.004,120]
[354365623,1740449440818,-500.0,0.005,120]
[354365624,1740449440827,-1000.0,0.00612,120]
[354365625,1740449440837,-2007.5473699,0.00699,120]
[354365626,1740449440847,-2000.0,0.007,120]
[354365627,1740449440856,-199.87404124,0.0074747,120]
[354365628,1740449440866,-250.0,0.0074747,120]
[354365629,1740449440908,-600.0,0.0089,120]
[354365630,1740449440917,-10000.0,0.0099,120]
[354365631,1740449440927,-10000.0,0.01,120]
[354365632,1740449440936,-500.0,0.01,120]
[354365633,1740449440946,-6000.0,0.01,120]
[354365634,1740449440957,-2000.0,0.01245,120]
[354365635,1740449440967,-2000.0,0.01445,120]
[354365636,1740449440977,-288.7,0.0145,60]
[354365637,1740449440985,-500.0,0.015,120]
[354365638,1740449440995,-6000.0,0.015,120]
[354365639,1740449441004,-1539.03970355,0.0164499,120]
[354365640,1740449441013,-266.95216119,0.0164499,120]
[354365641,1740449441022,-2000.0,0.01645,120]
[354365642,1740449441032,-2000.0,0.01845,120]
[354365643,1740449441042,-260.1471636,0.019,120]
[354365644,1740449441051,-10000.0,0.0199,120]
[354365645,1740449441060,-10000.0,0.02,120]
[354365646,1740449441069,-500.0,0.02,120]
[354365647,1740449441079,-288.7,0.02,60]
[354365648,1740449441088,-2512.9,0.02,120]
[354365649,1740449441097,-5999.95,0.02,120]
[354365650,1740449441106,-2000.0,0.02045,120]
[354365651,1740449441117,-2000.0,0.02245,120]
[354365652,1740449441126,-2000.0,0.02445,120]
[354365653,1740449441135,-456.21,0.02465743,120]
[354365654,1740449441145,-229.0249121,0.02465753,120]
[354365655,1740449441154,-153.0,0.02465753,120]
[354365656,1740449441163,-153.0,0.02465753,120]
[354365657,1740449441172,-153.0,0.02465753,120]
[354365658,1740449441182,-153.0,0.02465753,120]
[354365659,1740449441191,-153.0,0.02465753,120]
[354365660,1740449441201,-153.0,0.02465753,120]
[354365661,1740449441211,-153.0,0.02465753,120]
[354365662,1740449441220,-153.0,0.02465753,120]
[354365663,1740449441230,-153.0,0.02465753,120]
[354365664,1740449441239,-153.0,0.02465753,120]
[354365665,1740449441248,-153.0,0.02465753,120]
[354365666,1740449441258,-153.0,0.02465753,120]
[354365667,1740449441267,-153.0,0.02465753,120]
[354365668,1740449441276,-153.0,0.02465753,120]
[354365669,1740449441287,-153.0,0.02465753,120]
[354365670,1740449441297,-153.0,0.02465753,120]
[354365671,1740449441306,-153.0,0.02465753,120]
[354365672,1740449441316,-153.0,0.02465753,120]
[354365673,1740449441325,-153.0,0.02465753,120]
[354365674,1740449441334,-153.0,0.02465753,120]
[354365675,1740449441344,-236.0,0.02465753,120]
[354365676,1740449441353,-236.0,0.02465753,120]
[354365677,1740449441362,-236.0,0.02465753,120]
[354365678,1740449441371,-236.0,0.02465753,120]
[354365679,1740449441381,-236.0,0.02465753,120]
[354365680,1740449441390,-236.0,0.02465753,120]
[354365681,1740449441400,-236.0,0.02465753,120]
[354365682,1740449441409,-236.0,0.02465753,120]
[354365683,1740449441419,-236.0,0.02465753,120]
[354365684,1740449441428,-236.0,0.02465753,120]
[354365685,1740449441438,-236.0,0.02465753,120]
[354365686,1740449441447,-236.0,0.02465753,120]
[354365687,1740449441457,-236.0,0.02465753,120]
[354365688,1740449441466,-236.0,0.02465753,120]
[354365689,1740449441475,-236.0,0.02465753,120]
[354365690,1740449441484,-236.0,0.02465753,120]
[354365691,1740449441495,-236.0,0.02465753,120]
[354365692,1740449441505,-236.0,0.02465753,120]
[354365693,1740449441514,-236.0,0.02465753,120]
[354365694,1740449441523,-236.0,0.02465753,120]
[354365695,1740449441534,-236.0,0.02465753,120]
[354365696,1740449441543,-236.0,0.02465753,120]
[354365697,1740449441553,-236.0,0.02465753,120]
[354365698,1740449441562,-236.0,0.02465753,120]
[354365699,1740449441571,-236.0,0.02465753,120]
[354365700,1740449441580,-236.0,0.02465753,120]
[354365701,1740449441590,-236.0,0.02465753,120]
[354365702,1740449441599,-236.0,0.02465753,120]
[354365703,1740449441608,-236.0,0.02465753,120]
[354365704,1740449441617,-236.0,0.02465753,120]
[354365705,1740449441628,-236.0,0.02465753,120]
[354365706,1740449441640,-236.0,0.02465753,120]
[354365707,1740449441649,-236.0,0.02465753,120]
[354365708,1740449441658,-236.0,0.02465753,120]
[354365709,1740449441668,-236.0,0.02465753,120]
[354365710,1740449441677,-236.0,0.02465753,120]
[354365711,1740449441686,-236.0,0.02465753,120]
[354365712,1740449441696,-236.0,0.02465753,120]
[354365713,1740449441705,-236.0,0.02465753,120]
[354365714,1740449441716,-236.0,0.02465753,120]
[354365715,1740449441726,-236.0,0.02465753,120]
[354365716,1740449441735,-236.0,0.02465753,120]
[354365717,1740449441745,-236.0,0.02465753,120]
[354365718,1740449441754,-236.0,0.02465753,120]
[354365719,1740449441763,-236.0,0.02465753,120]
[354365720,1740449441773,-236.0,0.02465753,120]
[354365721,1740449441783,-236.0,0.02465753,120]
[354365722,1740449441793,-236.0,0.02465753,120]
[354365723,1740449441803,-236.0,0.02465753,120]
[354365724,1740449441813,-236.0,0.02465753,120]
[354365725,1740449441823,-236.0,0.02465753,120]
[354365726,1740449441832,-236.0,0.02465753,120]
[354365727,1740449441841,-236.0,0.02465753,120]
[354365728,1740449441851,-236.0,0.02465753,120]
[354365729,1740449441861,-236.0,0.02465753,120]
[354365730,1740449441871,-236.0,0.02465753,120]
[354365731,1740449441881,-236.0,0.02465753,120]
[354365732,1740449441890,-236.0,0.02465753,120]
[354365733,1740449441899,-236.0,0.02465753,120]
[354365734,1740449441908,-236.0,0.02465753,120]
[354365735,1740449441918,-236.0,0.02465753,120]
[354365736,1740449441927,-236.0,0.02465753,120]
[354365737,1740449441936,-236.0,0.02465753,120]
[354365738,1740449441945,-236.0,0.02465753,120]
[354365739,1740449441955,-236.0,0.02465753,120]
[354365740,1740449441965,-236.0,0.02465753,120]
[354365741,1740449442071,-236.0,0.02465753,120]
[354365742,1740449442093,-236.0,0.02465753,120]
[354365743,1740449442104,-236.0,0.02465753,120]
[354365744,1740449442114,-236.0,0.02465753,120]
[354365745,1740449442123,-236.0,0.02465753,120]
[354365746,1740449442133,-236.0,0.02465753,120]
[354365747,1740449442143,-236.0,0.02465753,120]
[354365748,1740449442153,-236.0,0.02465753,120]
[354365749,1740449442170,-236.0,0.02465753,120]
[354365750,1740449442179,-236.0,0.02465753,120]
[354365751,1740449442189,-236.0,0.02465753,120]
[354365752,1740449442200,-236.0,0.02465753,120]
[354365753,1740449442209,-236.0,0.02465753,120]
[354365754,1740449442219,-236.0,0.02465753,120]
[354365755,1740449442228,-236.0,0.02465753,120]
[354365756,1740449442237,-236.0,0.02465753,120]
[354365757,1740449442247,-236.0,0.02465753,120]
[354365758,1740449442256,-236.0,0.02465753,120]
[354365759,1740449442265,-236.0,0.02465753,120]
[354365760,1740449442275,-236.0,0.02465753,120]
[354365761,1740449442287,-236.0,0.02465753,120]
[354365762,1740449442296,-236.0,0.02465753,120]
[354365763,1740449442306,-300.0,0.02465753,120]
[354365764,1740449442315,-300.0,0.02465753,120]
[354365765,1740449442325,-300.0,0.02465753,120]
[354365766,1740449442335,-300.0,0.02465753,120]
[354365767,1740449442345,-300.0,0.02465753,120]
[354365768,1740449442354,-300.0,0.02465753,120]
[354365769,1740449442364,-300.0,0.02465753,120]
[354365770,1740449442373,-300.0,0.02465753,120]
[354365771,1740449442383,-300.0,0.02465753,120]
[354365772,1740449442392,-300.0,0.02465753,120]
[354365773,1740449442402,-300.0,0.02465753,120]
[354365774,1740449442412,-300.0,0.02465753,120]
[354365775,1740449442421,-1539.03970355,0.0249999,120]
[354365776,1740449442431,-266.95216119,0.0249999,120]
[354365777,1740449442440,-500.0,0.025,120]
[354365778,1740449442450,-288.7,0.025,60]
[354365779,1740449442459,-500.0,0.025,120]
[354365780,1740449442468,-6000.0,0.025,120]
[354365781,1740449442478,-2000.0,0.02645,120]
[354365782,1740449442487,-12924.89674434,0.02771342,2]
[354365783,1740449442496,-500.0,0.02785678,120]
[354365784,1740449442506,-480.0,0.02813075,120]
[354365785,1740449442515,-440.0,0.02844405,120]
[354365786,1740449442525,-2000.0,0.02845,120]
[354365787,1740449442536,-380.0,0.02877414,120]